[Event "POL-chT 2nd League Juniors 2020"]
[Site "Sypniewo"]
[Date "2020.10.24"]
[Round "3.24"]
[White "Tim, Anna"]
[Black "Lajdamik, Anna"]
[Result "1-0"]
[ECO "D06"]
[WhiteElo "1237"]
[BlackElo "1292"]
[Annotator "NA RC"]
[PlyCount "97"]
[EventDate "2020.10.23"]
[EventType "team-tourn"]
[EventCountry "POL"]
[SourceTitle "playchess.com"]
[Source "ChessBase"]
[SourceQuality "1"]
[TimeControl "5400+30"]

1. d4 {[%emt 0:00:00]} d5 {[%emt 0:00:00]} 2. c4 {[%emt 0:00:00]} Bf5 {[%emt 0:00:33]} 3. Nc3 {[%emt 0:00:25]} e6 {[%emt 0:00:34]} 4. Nf3 {[%emt 0:01:23]} c6 {[%emt 0:01:12]} 5. Bf4 {[%emt 0:00:29]} Nf6 {[%emt 0:01:13]} 6. cxd5 {[%emt 0:02:51]} exd5 {[%emt 0:02:31]} 7. e3 {[%emt 0:01:12]} Bd6 {[%emt 0:02:06]} 8. Bxd6 {[%emt 0:00:49]} Qxd6 {[%emt 0:00:21]} 9. Bd3 {[%emt 0:00:13]} Bxd3 {[%emt 0:04:14]} 10. Qxd3 {[%emt 0:00:11]} Nbd7 {[%emt 0:00:53]} 11. O-O {[%emt 0:00:51]} O-O {[%emt 0:00:10]} 12. Rfc1 {[%emt 0:03:55]} Rae8 {[%emt 0:04:20]} 13. Qc2 {[%emt 0:08:26]} Ne4 {[%emt 0:04:27]} 14. Qa4 {[%emt 0:06:12]} f5 {[%emt 0:00:59]} 15. Ne2 {[%emt 0:04:03]} a6 {[%emt 0:13:52]} 16. Nf4 {[%emt 0:06:22]} g5 {[%emt 0:08:20]} 17. Nd3 {[%emt 0:02:20]} f4 {[%emt 0:02:10]} 18. exf4 {[%emt 0:01:22]} gxf4 {[%emt 0:00:14]} 19. Nde5 {[%emt 0:08:03]} Nxe5 {[%emt 0:00:42]} 20. Nxe5 {[%emt 0:00:30]} Re7 {[%emt 0:02:38]} 21. Qc2 {[%emt 0:02:34]} Nf6 {[%emt 0:03:38]} 22. f3 {[%emt 0:10:35]} Nd7 {[%emt 0:01:04]} 23. Nxd7 {[%emt 0:01:15]} Qxd7 {[%emt 0:00:11]} 24. Re1 {[%emt 0:00:22]} Rfe8 {[%emt 0:00:25]} 25. Rxe7 {[%emt 0:01:56]} Rxe7 {[%emt 0:00:09]} 26. Qd2 {[%emt 0:00:22]} Re3 {[%emt 0:06:03]} 27. Re1 {[%emt 0:00:26]} Qe7 {[%emt 0:00:50]} 28. Kf2 {[%emt 0:00:59]} Qh4+ {[%emt 0:03:19]} 29. Kf1 {[%emt 0:02:44]} Kf7 {[%emt 0:04:29]} 30. Rxe3 {[%emt 0:00:23]} fxe3 31. Qxe3 Qxh2 {[%emt 0:00:40]} 32. Qe5 {[%emt 0:07:46]} Qxe5 {[%emt 0:02:24]} 33. dxe5 {[%emt 0:00:17]} Ke6 {[%emt 0:00:20]} 34. f4 {[%emt 0:00:15]} d4 {[%emt 0:00:52]} 35. Ke2 {[%emt 0:07:24]} h5 {[%emt 0:02:35]} 36. Kd3 Kd5 37. e6 {[%emt 0:03:10]} Kxe6 {[%emt 0:00:39]} 38. Kxd4 {[%emt 0:00:13]} h4 {[%emt 0:02:36]} 39. Ke4 {[%emt 0:04:27]} b5 {[%emt 0:02:05]} 40. f5+ {[%emt 0:00:26]} Kf6 {[%emt 0:00:11]} 41. b4 {[%emt 0:02:27]} Kf7 {[%emt 0:00:33]} 42. Ke5 {[%emt 0:00:29]} Ke7 {[%emt 0:00:16]} 43. f6+ {[%emt 0:00:25]} Kf7 {[%emt 0:00:13]} 44. Kf5 {[%emt 0:00:49]} Kf8 {[%emt 0:01:03]} 45. Ke6 {[%emt 0:00:26]} Ke8 {[%emt 0:00:05]} 46. f7+ {[%emt 0:00:07]} Kf8 {[%emt 0:00:17]} 47. Kf6 {[%emt 0:00:08]} h3 {[%emt 0:00:07]} 48. gxh3 {[%emt 0:00:09]} a5 {[%emt 0:00:13]} 49. bxa5 {[%emt 0:00:15]} 1-0

[Event "POL-chT 2nd League Juniors 2020"]
[Site "Sypniewo"]
[Date "2020.10.25"]
[Round "4.1"]
[White "Wysocki, Mateusz"]
[Black "Majdanski, Maksymilian"]
[Result "1/2-1/2"]
[ECO "B30"]
[WhiteElo "1855"]
[BlackElo "1817"]
[Annotator "NA RC"]
[PlyCount "61"]
[EventDate "2020.10.23"]
[EventType "team-tourn"]
[EventCountry "POL"]
[SourceTitle "playchess.com"]
[Source "ChessBase"]
[SourceQuality "1"]
[TimeControl "5400+30"]

{[%evp 30,59,0,0,14,1,12,14,8,0,16,0,34,3,34,9,32767,32767,16,0,0,-5,6,4,0,32767,0,32767,32767,32767,32767,0]} 1. e4 {[%emt 0:00:00]} c5 {[%emt 0:00:00]} 2. Nf3 {[%emt 0:00:00]} Nc6 {[%emt 0:00:00]} 3. c3 {[%emt 0:00:00]} d5 {[%emt 0:00:13]} 4. exd5 {[%emt 0:00:06]} Qxd5 {[%emt 0:00:27]} 5. d4 {[%emt 0:00:10]} Bg4 {[%emt 0:00:46]} 6. Be2 {[%emt 0:00:08]} cxd4 {[%emt 0:01:05]} 7. cxd4 {[%emt 0:01:01]} e6 {[%emt 0:00:50]} 8. O-O {[%emt 0:04:46]} Nf6 {[%emt 0:03:59]} 9. Nc3 {[%emt 0:00:20]} Qa5 {[%emt 0:02:05]} 10. Be3 {[%emt 0:05:06]} Be7 {[%emt 0:02:56]} 11. Qb3 {[%emt 0:00:23]} Qb4 12. Qxb4 Bxb4 {[%emt 0:08:38]} 13. h3 {[%emt 0:04:28]} Bh5 {[%emt 0:04:33]} 14. g4 {[%emt 0:06:02]} Bg6 {[%emt 0:00:22]} 15. Ne5 {[%emt 0:00:23]} Bxc3 {[%emt 0:17:33]} 16. bxc3 {[%emt 0:00:38]} Nd5 {[%emt 0:01:15]} 17. Nxc6 {[%emt 0:25:07]} Nxe3 {[%emt 0:03:22]} 18. fxe3 {[%emt 0:00:09]} bxc6 {[%emt 0:00:07]} 19. Bf3 {[%emt 0:01:12]} Kd7 {[%emt 0:01:05]} 20. e4 {[%emt 0:00:07]} Rab8 {[%emt 0:10:17]} 21. Rab1 {[%emt 0:03:05]} Rxb1 {[%emt 0:01:04]} 22. Rxb1 {[%emt 0:00:06]} Kc7 {[%emt 0:00:26]} 23. Rb4 {[%emt 0:03:11]} Rb8 {[%emt 0:02:50]} 24. a3 {[%emt 0:21:48]} f6 {[%emt 0:08:11]} 25. Kf2 {[%emt 0:00:23]} a5 {[%emt 0:06:23]} 26. Rxb8 {[%emt 0:14:42]} Kxb8 $11 {[%emt 0:00:02]} 27. Ke3 {[%emt 0:01:41]} e5 {[%emt 0:03:13]} 28. c4 {[%emt 0:00:08]} Bf7 {[%emt 0:02:48]} 29. Be2 {[%emt 0:00:45]} c5 {[%emt 0:03:26]} 30. d5 {[%emt 0:03:11]} ({Much weaker is} 30. dxc5 Kc7 $17) 30... Kc7 {[%emt 0:01:10]} 31. Bd1 {[%emt 0:00:09]} 1/2-1/2

[Event "POL-chT 2nd League Juniors 2020"]
[Site "Sypniewo"]
[Date "2020.10.25"]
[Round "4.3"]
[White "Komendecki, Antoni"]
[Black "Nowak, Filip"]
[Result "1/2-1/2"]
[ECO "C11"]
[WhiteElo "1801"]
[BlackElo "1871"]
[Annotator "NA RC"]
[PlyCount "107"]
[EventDate "2020.10.23"]
[EventType "team-tourn"]
[EventCountry "POL"]
[SourceTitle "playchess.com"]
[Source "ChessBase"]
[SourceQuality "1"]
[TimeControl "5400+30"]

{[%evp 11,90,-29,32767,32767,32767,32767,32767,-11,32767,-12,23,22,4,21,32767,-39,-35,-108,-136,-259,-261,-264,-277,-259,-180,-173,32767,-183,-147,-153,-109,-123,-99,-96,32767,-118,32767,32767,32767,32767,-7,-12,32,36,89,88,214,179,273,244,538,355,353,487,529,154,171,98,130,101,157,87,185,229,208,116,32767,32767,32767,405,352,189,1236,989,744,1105,1162,1140,1243,1413,1584]} 1. e4 {[%emt 0:00:00]} e6 {[%emt 0:00:00]} 2. Nf3 {[%emt 0:00:00]} d5 {[%emt 0:00:00]} 3. Nc3 {[%emt 0:00:07]} Nf6 {[%emt 0:00:00]} 4. e5 {[%emt 0:00:12]} Nfd7 {[%emt 0:00:00]} 5. d4 {[%emt 0:00:10]} c5 {[%emt 0:00:03]} 6. dxc5 {[%emt 0:00:15]} Nc6 {[%emt 0:00:29]} 7. Bf4 {[%emt 0:00:22]} Bxc5 {[%emt 0:01:51]} 8. Bd3 {[%emt 0:00:15]} a6 {[%emt 0:07:13]} 9. O-O {[%emt 0:01:07]} b5 {[%emt 0:01:25]} 10. a3 {[%emt 0:01:05] 10.a3 is better than 10.Re1. C11: French: Classical System: 4 e5 and 4 Bg5 dxe4.} Qb6 {[%emt 0:02:47]} 11. Qe2 {[%emt 0:24:01]} Bb7 {[%emt 0:04:51]} 12. Ng5 {[%emt 0:05:18] [#]} h6 $146 {[%emt 0:25:09]} ({Predecessor:} 12... Nf8 13. Qh5 Qc7 14. Bxb5 axb5 15. Nxb5 Qe7 16. b4 Nd4 17. Nd6+ Bxd6 18. exd6 Qf6 19. Be5 Ne2+ 20. Qxe2 Ba6 21. b5 Qxg5 22. bxa6 f6 23. Bd4 Qf4 24. Qb5+ {1-0 (24) Rigo,J (2365)-Segers,H Baden-Baden 1987}) 13. Nf3 {[%emt 0:25:05]} (13. Nxd5 $1 $14 Nd4 14. Nxb6 Nxe2+ 15. Bxe2 Nxb6 16. Nf3) 13... Rc8 {[%emt 0:01:21]} 14. b4 {[%emt 0:11:20]} (14. Rae1 $11) 14... Nd4 {[%emt 0:06:07]} 15. Qe1 {[%emt 0:05:49]} (15. Qe3 $17 {is a better defense.} Nxf3+ 16. Qxf3) 15... Nxf3+ {[%emt 0:02:10]} 16. gxf3 {[%emt 0:00:07]} Bd4 {[%emt 0:00:20]} 17. Ne2 {[%emt 0:00:56]} Bxa1 {[%emt 0:08:34]} 18. Qxa1 {[%emt 0:00:09]} Qc7 {[%emt 0:03:07]} 19. Re1 {[%emt 0:03:57]} Ke7 {[%emt 0:03:00]} 20. Bg3 {[%emt 0:00:51]} Rcg8 {[%emt 0:10:06]} 21. f4 {[%emt 0:01:49]} g6 {[%emt 0:04:31]} 22. Nd4 {[%emt 0:01:57]} Nb6 {[%emt 0:04:31]} 23. Kf1 {[%emt 0:06:48]} Nc4 {[%emt 0:00:39]} 24. Qc1 {[%emt 0:00:23]} Qb6 {[%emt 0:00:52]} 25. Nb3 {[%emt 0:00:30]} Bc6 {[%emt 0:03:42]} (25... Kd7 $17 26. Nc5+ Kc8) 26. Bh4+ $1 {[%emt 0:03:42]} Ke8 {[%emt 0:00:18]} 27. Bf6 {[%emt 0:00:06]} Rh7 {[%emt 0:00:44]} 28. Nc5 {[%emt 0:01:00]} Qa7 {[%emt 0:01:35] [#]} (28... a5 $16) 29. Qa1 {[%emt 0:04:23]} (29. a4 $142 $1 {[%mdl 512]} Bd7 (29... bxa4 30. Bxc4) 30. Bxc4) 29... Qa8 {[%emt 0:02:43]} (29... Qb6 $16 {was called for.}) 30. Rd1 {[%emt 0:00:53]} Qc8 $2 {[%emt 0:05:01]} (30... Nb6) 31. Qc3 {[%emt 0:00:49]} Rhg7 {[%emt 0:01:04]} 32. Bxc4 {[%emt 0:01:58]} bxc4 {[%emt 0:00:32] [#]} 33. Bxg7 $2 {[%emt 0:00:18]} (33. b5 $1 $18 {[%mdl 512] and White stays clearly on top.} axb5 34. Qa5) 33... Rxg7 {[%emt 0:00:01]} 34. Qh3 {[%emt 0:00:13]} (34. a4 $18) 34... h5 {[%emt 0:01:25]} 35. Qh4 {[%emt 0:00:32]} Rh7 {[%emt 0:00:36] [#]} ({Black should play} 35... Rg8) 36. c3 {[%emt 0:00:53]} (36. Qf6 $142 $1) 36... Bb5 {[%emt 0:00:33]} (36... Rh8 $16 {might work better.}) 37. a4 {[%emt 0:00:24]} Bd7 {[%emt 0:00:19] [#]} 38. a5 {[%emt 0:00:08]} (38. Qf6 $1 $18) 38... Bb5 {[%emt 0:00:10]} 39. Qg5 {[%emt 0:00:59]} Qc6 {[%emt 0:00:39] [#]} 40. Ne4 $1 {[%emt 0:00:33] Back Rank} Kf8 {[%emt 0:00:58]} 41. Nd6 {[%emt 0:00:30]} d4 $2 {[%emt 0:00:23]} (41... Qd7 42. Ke2 (42. Nxb5 Qxb5 43. f5 gxf5 $11) 42... Ba4) 42. Qd8+ {[%emt 0:00:31]} Kg7 {[%emt 0:00:01]} 43. Qf6+ {[%emt 0:00:02]} Kg8 {[%emt 0:00:44]} 44. Rxd4 {[%emt 0:00:18]} Qh1+ {[%emt 0:00:28]} 45. Ke2 {[%emt 0:00:02]} Bc6 $18 {[%emt 0:00:40]} 46. Ne4 {[%emt 0:01:34]} Bd5 {[%emt 0:00:00]} 47. Ng5 {[%emt 0:00:32]} Qc1 {[%emt 0:00:51]} 48. Qd8+ {[%emt 0:00:28]} Kg7 {[%emt 0:00:03]} 49. Qf6+ {[%emt 0:00:04]} Kg8 {[%emt 0:00:01]} 50. Rxd5 {[%emt 0:01:02]} exd5 {[%emt 0:00:58]} 51. Nxh7 {[%emt 0:00:23]} Qc2+ {[%emt 0:00:23]} 52. Kf1 {[%emt 0:00:21]} Qd1+ {[%emt 0:00:13]} 53. Kg2 {[%emt 0:00:10]} Qg4+ {[%emt 0:00:06]} 54. Kf1 {[%emt 0:00:15]} 1/2-1/2

[Event "POL-chT 2nd League Juniors 2020"]
[Site "Sypniewo"]
[Date "2020.10.25"]
[Round "4.3"]
[White "Doroba, Ludwik"]
[Black "Lochinski, Pawel"]
[Result "1-0"]
[ECO "E61"]
[WhiteElo "1330"]
[BlackElo "1426"]
[Annotator "NA RC"]
[PlyCount "65"]
[EventDate "2020.10.23"]
[EventType "team-tourn"]
[EventCountry "POL"]
[SourceTitle "playchess.com"]
[Source "ChessBase"]
[SourceQuality "1"]
[TimeControl "5400+30"]

1. d4 {[%emt 0:00:00]} Nf6 {[%emt 0:00:00]} 2. c4 {[%emt 0:00:00]} g6 {[%emt 0:00:00]} 3. Nc3 {[%emt 0:00:23]} Bg7 {[%emt 0:00:00]} 4. Nf3 {[%emt 0:01:05]} O-O {[%emt 0:00:14]} 5. e3 {[%emt 0:06:27]} d6 {[%emt 0:04:02]} 6. Bd3 {[%emt 0:04:58]} Nbd7 {[%emt 0:04:06]} 7. O-O {[%emt 0:05:05]} e5 8. Re1 {[%emt 0:09:11]} c6 {[%emt 0:03:30]} 9. d5 {[%emt 0:06:27]} cxd5 {[%emt 0:05:22]} 10. cxd5 {[%emt 0:01:34]} Nc5 {[%emt 0:00:14]} 11. e4 {[%emt 0:02:27]} a6 {[%emt 0:06:48]} 12. b4 {[%emt 0:03:31]} Nxd3 {[%emt 0:00:41]} 13. Qxd3 {[%emt 0:00:19]} Ne8 {[%emt 0:10:03]} 14. Nd2 {[%emt 0:07:42]} f5 {[%emt 0:13:30]} 15. Nc4 {[%emt 0:02:44]} f4 {[%emt 0:05:39]} 16. f3 {[%emt 0:08:20]} g5 {[%emt 0:06:30]} 17. h3 {[%emt 0:02:23]} h5 {[%emt 0:07:22]} 18. a4 {[%emt 0:00:48]} Rf7 {[%emt 0:04:01]} 19. Kf2 {[%emt 0:01:59]} g4 {[%emt 0:02:11]} 20. hxg4 {[%emt 0:07:11]} hxg4 {[%emt 0:01:34]} 21. Rh1 {[%emt 0:00:40]} Bf6 {[%emt 0:04:40]} 22. Bd2 {[%emt 0:02:03]} Bh4+ {[%emt 0:00:40]} 23. Ke2 {[%emt 0:00:57]} Qg5 {[%emt 0:00:24]} 24. Rag1 {[%emt 0:01:35]} Rf6 {[%emt 0:05:20]} 25. Nb6 {[%emt 0:02:07]} Rb8 {[%emt 0:00:12]} 26. Qc4 {[%emt 0:03:12]} Rf7 {[%emt 0:00:12]} 27. Qd3 {[%emt 0:03:32]} Ng7 {[%emt 0:02:40]} 28. Nxc8 {[%emt 0:02:26]} Rxc8 {[%emt 0:00:01]} 29. fxg4 {[%emt 0:01:00]} Qxg4+ {[%emt 0:03:43]} 30. Qf3 {[%emt 0:00:24]} Qxf3+ {[%emt 0:00:44]} 31. gxf3 {[%emt 0:00:25]} Bg3 {[%emt 0:00:10]} 32. Kd3 {[%emt 0:01:42]} Kf8 {[%emt 0:01:26]} 33. Rh8+ 1-0

[Event "POL-chT 2nd League Juniors 2020"]
[Site "Sypniewo"]
[Date "2020.10.25"]
[Round "4.4"]
[White "Zimny, Jakub"]
[Black "Karaszewski, Gabriel"]
[Result "1-0"]
[ECO "A08"]
[WhiteElo "1569"]
[BlackElo "1614"]
[Annotator "NA RC"]
[PlyCount "91"]
[EventDate "2020.10.23"]
[EventType "team-tourn"]
[EventCountry "POL"]
[SourceTitle "playchess.com"]
[Source "ChessBase"]
[SourceQuality "1"]
[TimeControl "5400+30"]

1. Nf3 {[%emt 0:00:00]} c5 {[%emt 0:00:00]} 2. g3 {[%emt 0:00:08]} d5 {[%emt 0:00:08]} 3. Bg2 {[%emt 0:00:25]} Nc6 {[%emt 0:00:17]} 4. O-O {[%emt 0:00:26]} Nf6 {[%emt 0:00:40]} 5. d3 {[%emt 0:00:34]} e6 {[%emt 0:01:25]} 6. Nbd2 {[%emt 0:01:34]} Be7 {[%emt 0:00:45]} 7. e4 {[%emt 0:01:31]} O-O {[%emt 0:00:30]} 8. Nh4 {[%emt 0:03:54]} Qb6 {[%emt 0:07:01]} 9. Kh1 {[%emt 0:08:00]} Rd8 {[%emt 0:03:34]} 10. f4 {[%emt 0:08:24]} dxe4 {[%emt 0:02:56]} 11. dxe4 {[%emt 0:20:24]} Qa6 {[%emt 0:13:02]} 12. c3 {[%emt 0:04:40]} b5 {[%emt 0:01:47]} 13. Qc2 {[%emt 0:04:11]} Bb7 {[%emt 0:00:26]} 14. Re1 {[%emt 0:08:37]} e5 {[%emt 0:01:46]} 15. Nf5 {[%emt 0:04:46]} Bf8 {[%emt 0:06:04]} 16. Nf3 {[%emt 0:01:35]} exf4 {[%emt 0:00:37]} 17. Bxf4 {[%emt 0:00:42]} h6 {[%emt 0:02:49]} 18. a4 {[%emt 0:03:56]} b4 {[%emt 0:02:17]} 19. Red1 {[%emt 0:08:53]} Qc4 {[%emt 0:12:41]} 20. e5 {[%emt 0:09:11]} Ne8 {[%emt 0:01:34]} 21. Ne3 {[%emt 0:01:29]} Qe6 {[%emt 0:00:48]} 22. Qe2 {[%emt 0:02:06]} Nc7 {[%emt 0:09:53]} 23. h4 {[%emt 0:02:36]} Na5 {[%emt 0:04:49]} 24. cxb4 {[%emt 0:02:03]} cxb4 {[%emt 0:00:08]} 25. Rac1 {[%emt 0:00:22]} Nd5 {[%emt 0:04:57]} 26. Nxd5 {[%emt 0:00:47]} Bxd5 {[%emt 0:00:10]} 27. Qb5 {[%emt 0:01:28]} Nb3 {[%emt 0:00:27]} 28. Rc7 {[%emt 0:00:43]} Bxf3 {[%emt 0:01:46]} 29. Bxf3 {[%emt 0:00:01]} Rxd1+ {[%emt 0:00:03]} 30. Bxd1 {[%emt 0:00:07]} Qh3+ {[%emt 0:00:38]} 31. Kg1 {[%emt 0:00:01]} a6 {[%emt 0:01:54]} 32. Qd5 {[%emt 0:00:48]} Bc5+ {[%emt 0:01:03]} 33. Rxc5 {[%emt 0:00:11]} Nxc5 {[%emt 0:00:04]} 34. Qxa8+ {[%emt 0:00:09]} Kh7 {[%emt 0:00:10]} 35. Qg2 {[%emt 0:01:11]} Qd7 {[%emt 0:00:18]} 36. Qc2+ {[%emt 0:00:28]} Kh8 {[%emt 0:00:11]} 37. Qd2 {[%emt 0:00:48]} Qb7 {[%emt 0:01:01]} 38. Bc2 {[%emt 0:00:38]} Qb6 {[%emt 0:00:17]} 39. Qd6 {[%emt 0:00:26]} Nxa4+ {[%emt 0:01:11]} 40. Qxb6 {[%emt 0:00:02]} Nxb6 {[%emt 0:00:01]} 41. Bb3 {[%emt 0:00:29]} Kg8 {[%emt 0:00:19]} 42. Kf2 {[%emt 0:00:10]} a5 {[%emt 0:00:06]} 43. Be3 {[%emt 0:00:22]} Nd7 {[%emt 0:00:21]} 44. e6 {[%emt 0:00:19]} Nf6 {[%emt 0:01:17]} 45. exf7+ {[%emt 0:00:11]} Kf8 {[%emt 0:00:07]} 46. Bc5# 1-0

[Event "POL-chT 2nd League Juniors 2020"]
[Site "Sypniewo"]
[Date "2020.10.25"]
[Round "4.4"]
[White "Lewek, Jakub"]
[Black "Rumniak, Aleksy"]
[Result "1-0"]
[ECO "C55"]
[WhiteElo "1260"]
[BlackElo "1117"]
[Annotator "NA RC"]
[PlyCount "59"]
[EventDate "2020.10.23"]
[EventType "team-tourn"]
[EventCountry "POL"]
[SourceTitle "playchess.com"]
[Source "ChessBase"]
[SourceQuality "1"]
[TimeControl "5400+30"]

1. e4 {[%emt 0:00:00]} e5 {[%emt 0:00:00]} 2. Nf3 {[%emt 0:00:00]} Nc6 {[%emt 0:00:00]} 3. Bc4 {[%emt 0:00:00]} Nf6 {[%emt 0:00:42]} 4. d4 {[%emt 0:00:25]} Nxe4 {[%emt 0:16:36]} 5. dxe5 {[%emt 0:03:03]} Nc5 {[%emt 0:12:19]} 6. Be3 {[%emt 0:03:44]} Ne6 {[%emt 0:05:36]} 7. Nc3 {[%emt 0:11:09]} Be7 {[%emt 0:12:57]} 8. Qd2 {[%emt 0:04:34]} O-O {[%emt 0:03:57]} 9. O-O-O {[%emt 0:02:11]} a6 {[%emt 0:08:58]} 10. g4 {[%emt 0:04:47]} b5 {[%emt 0:01:53]} 11. Bd3 {[%emt 0:02:42]} Bc5 {[%emt 0:06:31]} 12. Bxc5 {[%emt 0:09:39]} Nxc5 {[%emt 0:00:12]} 13. Bf5 {[%emt 0:06:15]} b4 {[%emt 0:09:49]} 14. Ne4 {[%emt 0:03:17]} Nxe4 {[%emt 0:11:41]} 15. Bxe4 {[%emt 0:00:16]} Qe7 {[%emt 0:00:46]} 16. Ng5 {[%emt 0:04:38]} h6 {[%emt 0:01:41]} 17. Nf3 {[%emt 0:02:14]} Rb8 {[%emt 0:00:25]} 18. Rde1 {[%emt 0:01:16]} a5 {[%emt 0:00:40]} 19. h4 {[%emt 0:02:55]} a4 {[%emt 0:01:25]} 20. g5 {[%emt 0:01:30]} h5 {[%emt 0:00:33]} 21. g6 {[%emt 0:00:15]} f6 {[%emt 0:00:53]} 22. exf6 {[%emt 0:00:48]} Qxf6 {[%emt 0:00:12]} 23. Bd5+ {[%emt 0:01:31]} Kh8 {[%emt 0:00:34]} 24. Rhg1 {[%emt 0:02:27]} b3 {[%emt 0:02:03]} 25. cxb3 {[%emt 0:00:41]} axb3 {[%emt 0:00:26]} 26. a3 {[%emt 0:03:26]} Nb4 {[%emt 0:01:39]} 27. Rg5 {[%emt 0:03:20]} Na2+ {[%emt 0:00:31]} 28. Kb1 {[%emt 0:01:12]} Rf7 {[%emt 0:00:30]} 29. Rxh5+ {[%emt 0:00:43]} Kg8 {[%emt 0:00:06]} 30. Re8# {[%emt 0:00:29]} 1-0

[Event "POL-chT 2nd League Juniors 2020"]
[Site "Sypniewo"]
[Date "2020.10.25"]
[Round "4.5"]
[White "Lascar, Maria Elena"]
[Black "Jedrzejko, Martyna"]
[Result "0-1"]
[ECO "B12"]
[WhiteElo "1552"]
[BlackElo "1618"]
[Annotator "NA RC"]
[PlyCount "68"]
[EventDate "2020.10.23"]
[EventType "team-tourn"]
[EventCountry "POL"]
[SourceTitle "playchess.com"]
[Source "ChessBase"]
[SourceQuality "1"]
[TimeControl "5400+30"]

1. e4 {[%emt 0:00:00]} c6 {[%emt 0:00:00]} 2. d4 {[%emt 0:02:03]} d5 {[%emt 0:00:00]} 3. Bd3 {[%emt 0:02:30]} dxe4 {[%emt 0:06:55]} 4. Bxe4 {[%emt 0:00:08]} Nf6 {[%emt 0:00:09]} 5. Bf3 {[%emt 0:00:26]} Bf5 {[%emt 0:02:05]} 6. Ne2 {[%emt 0:04:43]} e6 {[%emt 0:02:00]} 7. O-O {[%emt 0:02:35]} Bd6 {[%emt 0:01:38]} 8. Bf4 {[%emt 0:04:40]} Bxf4 {[%emt 0:00:48]} 9. Nxf4 {[%emt 0:00:33]} Nbd7 {[%emt 0:02:45]} 10. Nd2 {[%emt 0:05:18]} O-O {[%emt 0:02:41]} 11. Nc4 {[%emt 0:02:13]} Qc7 {[%emt 0:04:43]} 12. Nh5 {[%emt 0:13:35]} Nxh5 {[%emt 0:02:16]} 13. Bxh5 {[%emt 0:00:02]} Nf6 {[%emt 0:00:14]} 14. Bf3 {[%emt 0:02:59]} Rad8 {[%emt 0:02:38]} 15. Ne3 {[%emt 0:10:08]} Bg6 {[%emt 0:00:58]} 16. c3 {[%emt 0:01:06]} e5 {[%emt 0:06:51]} 17. Qa4 {[%emt 0:02:01]} exd4 {[%emt 0:08:33]} 18. cxd4 {[%emt 0:00:08]} Qb6 {[%emt 0:02:55]} 19. Rfd1 {[%emt 0:07:03]} Qxb2 {[%emt 0:15:50]} 20. Qxa7 {[%emt 0:04:15]} Ra8 {[%emt 0:00:48]} 21. Qc5 {[%emt 0:01:28]} Rxa2 {[%emt 0:00:52]} 22. Rxa2 {[%emt 0:01:12]} Qxa2 {[%emt 0:00:07]} 23. Qe7 {[%emt 0:08:12]} Qb3 {[%emt 0:05:56]} 24. h4 {[%emt 0:04:44]} Re8 {[%emt 0:03:48]} 25. Qc7 {[%emt 0:01:49]} h6 {[%emt 0:02:48]} 26. g4 {[%emt 0:02:24]} Nd5 {[%emt 0:13:37]} 27. Bxd5 {[%emt 0:04:48]} cxd5 {[%emt 0:00:16]} 28. Rc1 {[%emt 0:05:29]} Rxe3 {[%emt 0:06:24]} 29. fxe3 {[%emt 0:00:41]} Qxe3+ {[%emt 0:00:10]} 30. Kh2 {[%emt 0:00:52]} Be4 {[%emt 0:01:16]} 31. Rc2 {[%emt 0:04:32]} Bxc2 {[%emt 0:00:16]} 32. Qxc2 {[%emt 0:00:08]} Qf4+ {[%emt 0:00:33]} 33. Kh3 {[%emt 0:00:43]} Qf3+ {[%emt 0:00:11]} 34. Kh2 {[%emt 0:00:12]} Qxg4 {[%emt 0:00:11]} 0-1

[Event "POL-chT 2nd League Juniors 2020"]
[Site "Sypniewo"]
[Date "2020.10.25"]
[Round "4.5"]
[White "Matyjasek, Michalina"]
[Black "Zalucka, Emilia"]
[Result "1-0"]
[ECO "D37"]
[WhiteElo "1477"]
[BlackElo "1524"]
[Annotator "NA RC"]
[PlyCount "93"]
[EventDate "2020.10.23"]
[EventType "team-tourn"]
[EventCountry "POL"]
[SourceTitle "playchess.com"]
[Source "ChessBase"]
[SourceQuality "1"]
[TimeControl "5400+30"]

1. d4 {[%emt 0:00:00]} d5 {[%emt 0:00:00]} 2. c4 {[%emt 0:00:00]} e6 {[%emt 0:00:00]} 3. Nc3 {[%emt 0:00:00]} Nf6 {[%emt 0:00:00]} 4. Nf3 {[%emt 0:00:00]} Be7 {[%emt 0:00:00]} 5. e3 {[%emt 0:00:00]} Nbd7 {[%emt 0:00:00]} 6. b3 {[%emt 0:00:00]} b6 {[%emt 0:00:36]} 7. Bd3 {[%emt 0:00:18]} Bb7 {[%emt 0:00:44]} 8. O-O {[%emt 0:00:27]} O-O {[%emt 0:00:07]} 9. Bb2 {[%emt 0:00:56]} c5 {[%emt 0:00:43]} 10. cxd5 {[%emt 0:02:26]} exd5 {[%emt 0:00:53]} 11. Qe2 {[%emt 0:00:54]} Ne4 {[%emt 0:06:25]} 12. Rfd1 f5 {[%emt 0:12:30]} 13. Ba6 {[%emt 0:19:42]} Bxa6 {[%emt 0:14:21]} 14. Qxa6 {[%emt 0:00:25]} Nxc3 {[%emt 0:00:20]} 15. Bxc3 {[%emt 0:00:40]} Nf6 {[%emt 0:09:45]} 16. dxc5 {[%emt 0:13:54]} Ne4 {[%emt 0:08:31]} 17. Bb2 {[%emt 0:08:48]} Nxc5 {[%emt 0:01:40]} 18. Qb5 {[%emt 0:02:48]} Bf6 {[%emt 0:02:44]} 19. Bxf6 {[%emt 0:04:40]} Rxf6 {[%emt 0:00:29]} 20. b4 {[%emt 0:09:16]} a6 {[%emt 0:01:13]} 21. Qe2 {[%emt 0:01:20]} Ne4 {[%emt 0:00:50]} 22. Qd3 {[%emt 0:01:37]} Rd6 {[%emt 0:00:51]} 23. Qb3 {[%emt 0:04:29]} a5 {[%emt 0:05:25]} 24. a4 {[%emt 0:05:15]} Rc8 {[%emt 0:04:02]} 25. Rac1 {[%emt 0:01:43]} Rxc1 {[%emt 0:07:11]} 26. Rxc1 {[%emt 0:00:40]} axb4 {[%emt 0:02:02]} 27. Qxb4 {[%emt 0:01:48]} Nc5 {[%emt 0:02:59]} 28. Rd1 {[%emt 0:02:28]} Qa8 {[%emt 0:03:33]} 29. Rd4 {[%emt 0:01:51]} Qa5 {[%emt 0:04:38]} 30. Qa3 {[%emt 0:02:39]} Ne4 {[%emt 0:02:31]} 31. g3 {[%emt 0:03:58]} Qc5 {[%emt 0:02:10]} 32. Qb3 {[%emt 0:01:31]} Kf8 {[%emt 0:02:13]} 33. Kg2 {[%emt 0:06:08]} Ke7 {[%emt 0:03:17]} 34. Rd3 {[%emt 0:01:27]} Qc4 {[%emt 0:01:22]} 35. Qa3 {[%emt 0:01:09]} Nc5 {[%emt 0:00:54]} 36. Rd4 {[%emt 0:01:42]} Qc2 {[%emt 0:01:08]} 37. a5 {[%emt 0:02:09]} bxa5 {[%emt 0:00:55]} 38. Qxa5 {[%emt 0:00:07]} Nb3 {[%emt 0:00:32]} 39. Qa7+ {[%emt 0:00:19]} Rd7 {[%emt 0:00:21]} 40. Qa3+ {[%emt 0:00:05]} Kd8 {[%emt 0:01:18]} 41. Qf8+ {[%emt 0:01:26]} Kc7 {[%emt 0:00:24]} 42. Rb4 {[%emt 0:00:23]} Rd8 {[%emt 0:00:37]} 43. Qxg7+ {[%emt 0:00:18]} Rd7 {[%emt 0:00:18]} 44. Qe5+ {[%emt 0:00:29]} Kc6 {[%emt 0:00:51]} 45. Qe6+ {[%emt 0:00:34]} Kc7 {[%emt 0:00:31]} 46. Qb6+ {[%emt 0:00:12]} Kc8 {[%emt 0:00:05]} 47. Qb8# {[%emt 0:00:06]} 1-0